fUST/lending_fUST_20241206
["ID","MTS","AMOUNT","RATE_DAILY","PERIOD"]
[344418569,1733437840898,-12180.06011246,0.000305,2]
[344418570,1733437840910,-19521.80967376,0.000305,2]
[344418611,1733437842117,-14502.34818227,0.000305,2]
[344418612,1733437842128,-82889.97632702,0.000305,15]
[344418613,1733437842137,-151.0,0.000305,7]
[344418614,1733437842147,-151.0,0.000305,7]
[344418615,1733437842157,-151.0,0.000305,7]
[344418616,1733437842167,-151.0,0.000305,7]
[344418617,1733437842176,-170.38426,0.000305,7]
[344418618,1733437842186,-151.0,0.00030532,7]
[344418619,1733437842196,-184.63519045,0.00030539,2]
[344418620,1733437842206,-683.0,0.000306,15]
[344418621,1733437842216,-210.119721,0.00030608,7]
[344418622,1733437842225,-210.119721,0.00030608,7]
[344418623,1733437842235,-184.63519045,0.00030608,2]
[344418624,1733437842245,-666.0,0.00030608,2]
[344418625,1733437842257,-228.0,0.0003063,30]
[344418626,1733437842267,-500.0,0.00030648,2]
[344418627,1733437842277,-500.0,0.00030694,2]
[344418628,1733437842286,-2000.0,0.000307,4]
[344418629,1733437842296,-2000.0,0.000307,4]
[344418630,1733437842306,-151.0,0.000307,7]
[344418631,1733437842315,-151.0,0.000307,7]
[344418632,1733437842325,-151.0,0.000307,7]
[344418633,1733437842335,-151.0,0.000307,7]
[344418635,1733437842344,-151.0,0.000307,14]
[344418637,1733437842355,-151.0,0.000307,19]
[344418639,1733437842368,-151.0,0.000307,7]
[344418641,1733437842377,-200.307955,0.000307,7]
[344418643,1733437842387,-200.307955,0.000307,7]
[344418645,1733437842397,-151.0,0.000307,7]
[344418646,1733437842407,-151.0,0.000307,7]
[344418648,1733437842417,-3200.0,0.00030705,2]
[344418650,1733437842426,-210.119721,0.00030705,7]
[344418651,1733437842437,-210.119721,0.00030705,7]
[344418652,1733437842447,-500.0,0.00030705,10]
[344418653,1733437842456,-150.11,0.00030705,10]
[344418654,1733437842466,-150.11,0.00030705,10]
[344418655,1733437842476,-500.0,0.00030705,10]
[344418656,1733437842486,-500.0,0.00030705,10]
[344418657,1733437842495,-500.0,0.00030705,10]
[344418658,1733437842507,-150.11,0.00030705,10]
[344418659,1733437842517,-150.11,0.00030705,10]
[344418660,1733437842527,-150.11,0.00030705,2]
[344418661,1733437842536,-150.11,0.00030705,10]
[344418662,1733437842546,-500.0,0.00030705,10]
[344418663,1733437842555,-500.0,0.00030705,10]
[344418664,1733437842566,-500.0,0.00030705,10]
[344418665,1733437842575,-150.11,0.00030705,2]
[344418666,1733437842585,-500.0,0.00030705,10]
[344418667,1733437842595,-150.11,0.00030705,10]
[344418668,1733437842605,-151.0,0.00030705,7]
[344418669,1733437842614,-500.0,0.00030705,10]
[344418670,1733437842624,-150.11,0.00030705,10]
[344418671,1733437842633,-151.0,0.00030706,7]
[344418672,1733437842643,-151.0,0.00030706,7]
[344418673,1733437842652,-151.0,0.00030706,7]
[344418674,1733437842661,-151.0,0.00030706,7]
[344418675,1733437842671,-151.0,0.00030706,7]
[344418676,1733437842681,-151.0,0.00030706,7]
[344418677,1733437842692,-151.0,0.00030706,7]
[344418678,1733437842702,-151.0,0.00030706,7]
[344418679,1733437842712,-151.0,0.00030706,7]
[344418680,1733437842829,-151.0,0.00030706,7]
[344418681,1733437842839,-151.0,0.00030706,7]
[344418682,1733437842849,-170.360632,0.00030706,7]
[344418683,1733437842859,-151.0,0.00030706,7]
[344418684,1733437842869,-151.0,0.00030706,7]
[344418685,1733437842879,-151.0,0.00030706,7]
[344418686,1733437842889,-151.0,0.00030708,7]
[344418687,1733437842899,-182.76301,0.00030708,7]
[344418688,1733437842908,-151.0,0.00030708,7]
[344418689,1733437842918,-151.0,0.00030708,7]
[344418694,1733437842928,-151.0,0.00030708,7]
[344418699,1733437842938,-182.285232,0.00030708,7]
[344418702,1733437842949,-151.0,0.00030708,7]
[344418705,1733437842958,-151.0,0.00030708,7]
[344418707,1733437842968,-151.0,0.00030708,7]
[344418710,1733437842978,-273.310456,0.00030708,7]
[344418713,1733437842989,-210.119721,0.00030708,7]
[344418715,1733437843000,-210.119721,0.00030708,7]
[344418717,1733437843012,-210.119721,0.00030708,7]
[344418719,1733437843023,-210.119721,0.00030708,7]
[344418722,1733437843033,-210.119721,0.00030708,7]
[344418724,1733437843043,-210.119721,0.00030708,7]
[344418727,1733437843054,-210.119721,0.00030708,7]
[344418730,1733437843064,-210.119721,0.00030708,7]
[344418733,1733437843075,-210.119721,0.00030708,7]
[344418735,1733437843085,-210.119721,0.00030708,7]
[344418737,1733437843095,-210.119721,0.00030708,7]
[344418738,1733437843105,-210.119721,0.00030708,7]
[344418739,1733437843115,-210.119721,0.00030708,7]
[344418741,1733437843125,-210.119716,0.00030708,7]
[344418743,1733437843134,-151.0,0.00030708,7]
[344418745,1733437843144,-151.0,0.00030708,7]
[344418746,1733437843155,-151.0,0.00030708,7]
[344418748,1733437843165,-151.0,0.00030708,7]
[344418750,1733437843175,-151.0,0.00030708,7]
[344418752,1733437843185,-151.0,0.00030708,7]
[344418754,1733437843195,-151.0,0.00030708,7]
[344418755,1733437843205,-215.254463,0.00030708,7]
[344418756,1733437843215,-200.307955,0.00030708,7]
[344418757,1733437843224,-200.307955,0.00030708,7]
[344418758,1733437843234,-25.41338001,0.00030708,7]
[344418763,1733437843284,-174.89457499,0.00030708,7]
[344418765,1733437843294,-200.307955,0.00030708,7]
[344418767,1733437843304,-200.307955,0.00030708,7]
[344418769,1733437843313,-200.307955,0.00030708,7]
[344418770,1733437843323,-200.307955,0.00030708,7]
[344418772,1733437843332,-200.307955,0.00030708,7]
[344418774,1733437843342,-200.307955,0.00030708,7]
[344418776,1733437843351,-200.307955,0.00030708,7]
[344418778,1733437843366,-200.307955,0.00030708,7]
[344418780,1733437843375,-200.307955,0.00030708,7]
[344418781,1733437843384,-200.307955,0.00030708,7]
[344418783,1733437843394,-200.307957,0.00030708,7]
[344418785,1733437843406,-151.0,0.00030708,7]
[344418786,1733437843415,-151.0,0.00030708,7]
[344418787,1733437843424,-151.0,0.00030708,7]
[344418788,1733437843434,-151.0,0.00030708,7]
[344418789,1733437843445,-151.0,0.00030708,7]
[344418790,1733437843456,-151.0,0.00030708,7]
[344418791,1733437843465,-151.0,0.00030708,7]
[344418792,1733437843474,-151.0,0.00030708,7]
[344418793,1733437843484,-151.0,0.00030708,7]
[344418794,1733437843493,-245.583979,0.00030708,7]
[344418795,1733437843503,-151.0,0.00030708,7]
[344418796,1733437843516,-151.0,0.00030708,7]
[344418797,1733437843526,-151.0,0.00030708,7]
[344418798,1733437843535,-151.0,0.00030708,7]
[344418799,1733437843545,-151.0,0.00030708,7]
[344418800,1733437843555,-39160.99974076,0.00030708,10]
[344418801,1733437843568,-9760.8847711,0.00030708,10]
[344418802,1733437843579,-305.79,0.00030708,10]
[344418803,1733437843591,-124492.58620422,0.00030708,10]
[344418804,1733437843603,-8953.44878208,0.00030708,10]
[344418805,1733437843614,-541.519,0.00030708,10]
[344418806,1733437843625,-1948.96812658,0.00030708,10]
[344418807,1733437843643,-3144.88145797,0.00030708,10]
[344418808,1733437843654,-4775.0,0.00030708,10]
[344418873,1733437846464,-1291.96594809,0.0002859,2]
[344418875,1733437846474,-250.53764375,0.00030705,10]
[344418876,1733437846484,-7557.49640816,0.00030708,10]
[344418879,1733437846496,-110382.08671138,0.00030708,10]
[344418881,1733437846507,-64038.44959812,0.00030708,10]
[344418883,1733437846522,-3935.04370275,0.00030708,10]
[344418885,1733437846533,-51127.77769687,0.00030708,10]
[344418887,1733437846546,-4975.74293539,0.00030708,10]
[344418891,1733437846589,-12065.25,0.00030708,10]
[344418893,1733437846601,-14780.7,0.00030708,10]
[344418897,1733437846650,-244257.11230134,0.00030708,10]
[344418899,1733437846661,-42171.16432555,0.00030708,10]
[344418901,1733437846673,-1825408.73427177,0.00030708,10]
[344418902,1733437846682,-3214.21740646,0.00030708,2]
[344418904,1733437846692,-2251204.28662428,0.00030708,10]
[344418906,1733437846704,-13068.64280812,0.00030708,10]
[344418909,1733437846717,-27147.71662785,0.00030708,10]
[344418911,1733437846728,-5798.68284646,0.00030708,10]
[344418912,1733437846740,-334.9765,0.00030708,10]
[344418914,1733437846752,-1545.1119951,0.00030708,10]
[344418927,1733437846986,-4864.25,0.00030708,10]
[344418934,1733437847171,-150.01,0.00030693,2]
[344418935,1733437847182,-37138.46122573,0.00030708,10]
[344418949,1733437847358,-125919.96864937,0.00030708,10]
[344418951,1733437847373,-183590.95457237,0.00030708,10]
[344418954,1733437847387,-3754.99999999,0.00030708,10]
[344418956,1733437847402,-37800.0,0.00030708,10]
[344418959,1733437847416,-11089.0,0.00030708,10]
[344418961,1733437847431,-22307.99999998,0.00030708,10]
[344418963,1733437847444,-3700.0,0.00030708,10]
[344418966,1733437847458,-18279.4,0.00030708,10]
[344418968,1733437847472,-18799.99999987,0.00030708,10]
[344418974,1733437860860,224.060789,0.00013973,2]
[344418975,1733437940269,151.0,0.0003,120]
[344418976,1733437971624,151.0,0.0003,120]
[344419068,1733439035986,-4525.38306971,0.00021562,10]
[344419070,1733439035996,-155.0,0.00022,2]
[344419072,1733439036005,-711.8,0.00024436,2]
[344419074,1733439036015,-1474.7550051,0.00025414,2]
[344419076,1733439036024,-300.0,0.00025511,2]
[344419078,1733439036034,-300.0,0.00025511,2]
[344419080,1733439036043,-15428.95620111,0.00025511,2]
[344419082,1733439036056,-3024.5019114,0.00025511,2]
[344419083,1733439036068,-1900.9847661,0.00025511,2]
[344419084,1733439036079,-15080.77465152,0.00025511,2]
[344419085,1733439036091,-43832.78246987,0.00025511,2]
[344419086,1733439036100,-500.0,0.00025513,2]
[344419087,1733439036109,-500.0,0.00025513,2]
[344419088,1733439036121,-500.0,0.00025513,2]
[344419089,1733439036130,-500.0,0.00025513,2]
[344419090,1733439036140,-500.0,0.00025513,2]
[344419091,1733439036149,-500.0,0.00025513,2]
[344419093,1733439036159,-500.0,0.00025513,2]
[344419095,1733439036168,-500.0,0.00025513,2]
[344419097,1733439036177,-500.0,0.00025513,2]
[344419099,1733439036187,-500.0,0.00025513,2]
[344419101,1733439036196,-500.0,0.00025513,2]
[344419103,1733439036205,-500.0,0.00025513,2]
[344419105,1733439036215,-500.0,0.00025513,2]
[344419106,1733439036225,-500.0,0.00025513,2]
[344419108,1733439036235,-164.90113813,0.00025513,2]
[344419109,1733439036244,-500.0,0.00025513,2]
[344419111,1733439036254,-500.0,0.00025513,2]
[344419112,1733439036263,-500.0,0.00025513,2]
[344419114,1733439036273,-500.0,0.00025513,2]
[344419115,1733439036282,-500.0,0.00025513,2]
[344419116,1733439036292,-500.0,0.00025513,2]
[344419117,1733439036302,-500.0,0.00025513,2]
[344419119,1733439036311,-234.98541508,0.00025513,2]
[344419121,1733439036320,-500.0,0.00025513,2]
[344419123,1733439036330,-500.0,0.00025513,2]
[344419125,1733439036340,-500.0,0.00025513,2]
[344419127,1733439036349,-500.0,0.00025513,2]
[344419129,1733439036359,-500.0,0.00025513,2]
[344419130,1733439036371,-432.30272771,0.00025514,2]
[344419131,1733439036380,-24900.0,0.00025515,2]
[344419133,1733439036389,-500.21049203,0.00025573,2]
[344419135,1733439036400,-500.0,0.00025573,2]
[344419137,1733439036409,-500.0,0.00025573,2]
[344419139,1733439036419,-303.69241913,0.00025573,2]
[344419141,1733439036428,-500.0,0.00025573,2]
[344419142,1733439036438,-1913.1720731,0.00025634,2]
[344419144,1733439036447,-219.143633,0.00025734,2]
[344419146,1733439036457,-1000.0,0.00026121,2]
[344419148,1733439036466,-181.247009,0.00026146,2]
[344419149,1733439036475,-1474.75500503,0.0002616,2]
[344419151,1733439036485,-1474.75500503,0.00026905,2]
[344419153,1733439036494,-1176.63590491,0.00027122,2]
[344419155,1733439036504,-420.0,0.00027622,2]
[344419157,1733439036513,-1474.75500503,0.00027651,2]
[344419159,1733439036523,-500.0,0.000279,5]
[344419161,1733439036533,-6003.0814303,0.0002791,2]
[344419163,1733439036542,-193.5093594,0.00028045,2]
[344419165,1733439036551,-420.0,0.00028062,2]
[344419167,1733439036560,-1000.0,0.000282,2]
[344419169,1733439036570,-1474.75500503,0.00028396,2]
[344419171,1733439036579,-219.916804,0.00028689,2]
[344419174,1733439036589,-250.0,0.00028736,2]
[344419175,1733439036599,-156.6288,0.00028909,2]
[344419177,1733439036608,-1474.75500503,0.00029142,2]
[344419180,1733439036619,-219.143633,0.00029543,2]
[344419181,1733439036629,-1000.0,0.0002982,2]
[344419183,1733439036639,-1474.75500503,0.00029887,2]
[344419185,1733439036650,-213.0944069,0.0002989,30]
[344419187,1733439036660,-175.225,0.0003,24]
[344419189,1733439036671,-176.0,0.0003,2]
[344419191,1733439036681,-159.16,0.0003,31]
[344419194,1733439036692,-400.0,0.0003,2]
[344419196,1733439036702,-155.9494467,0.00030052,2]
[344419198,1733439036712,-500.0,0.00030136,7]
[344419200,1733439036722,-500.0,0.00030136,7]
[344419202,1733439036731,-500.0,0.00030136,7]
[344419204,1733439036741,-500.0,0.00030136,7]
[344419206,1733439036751,-168.0,0.00030136,7]
[344419207,1733439036764,-500.0,0.00030136,7]
[344419209,1733439036773,-500.0,0.00030136,7]
[344419212,1733439036783,-500.0,0.00030136,7]
[344419213,1733439036794,-500.0,0.00030136,7]
[344419215,1733439036803,-500.0,0.00030136,7]
[344419218,1733439036813,-500.0,0.00030136,7]
[344419219,1733439036822,-500.0,0.00030136,7]
[344419221,1733439036832,-500.0,0.00030136,7]
[344419223,1733439036842,-500.0,0.00030136,7]
[344419225,1733439036851,-500.0,0.00030136,7]
[344419227,1733439036863,-500.0,0.00030136,7]
[344419229,1733439036873,-500.0,0.00030136,7]
[344419231,1733439036882,-500.0,0.00030136,7]
[344419233,1733439036891,-500.0,0.00030136,7]
[344419235,1733439036900,-500.0,0.00030136,7]
[344419237,1733439036910,-500.0,0.00030136,7]
[344419239,1733439036919,-399.97542132,0.00030136,7]
[344419241,1733439036928,-500.0,0.00030136,7]
[344419243,1733439036937,-500.0,0.00030136,7]
[344419245,1733439036946,-500.0,0.00030136,7]
[344419247,1733439036955,-203.32,0.00030136,7]
[344419249,1733439036964,-500.0,0.00030136,7]
[344419251,1733439036974,-500.0,0.00030136,7]
[344419253,1733439036983,-500.0,0.00030136,7]
[344419254,1733439036992,-500.0,0.00030136,7]
[344419255,1733439037001,-582.5464457,0.00030136,7]
[344419256,1733439037010,-240.12150485,0.00030136,7]
[344419257,1733439037020,-500.0,0.00030136,7]
[344419258,1733439037029,-500.0,0.00030136,7]
[344419259,1733439037050,-500.0,0.00030136,7]
[344419260,1733439037060,-571.9,0.00030136,7]
[344419261,1733439037070,-500.0,0.00030136,7]
[344419262,1733439037079,-500.0,0.00030136,7]
[344419264,1733439037089,-506.87639359,0.00030136,7]
[344419266,1733439037099,-200.0,0.00030136,7]
[344419268,1733439037108,-500.0,0.00030136,7]
[344419270,1733439037120,-500.0,0.00030136,7]
[344419272,1733439037130,-505.67474053,0.00030136,7]
[344419275,1733439037139,-503.22503541,0.00030136,7]
[344419277,1733439037149,-500.0,0.00030136,7]
[344419278,1733439037159,-500.0,0.00030136,7]
[344419281,1733439037168,-500.0,0.00030136,7]
[344419283,1733439037178,-483.00929694,0.00030136,7]
[344419285,1733439037188,-500.0,0.00030136,7]
[344419287,1733439037197,-500.0,0.00030136,7]
[344419289,1733439037207,-501.51195052,0.00030136,7]
[344419291,1733439037216,-500.0,0.00030136,7]
[344419293,1733439037225,-500.0,0.00030136,7]
[344419295,1733439037235,-500.0,0.00030136,7]
[344419297,1733439037244,-500.0,0.00030136,7]
[344419299,1733439037254,-500.0,0.00030136,7]
[344419301,1733439037263,-500.0,0.00030136,7]
[344419303,1733439037274,-500.0,0.00030136,7]
[344419305,1733439037283,-500.0,0.00030136,7]
[344419307,1733439037293,-501.29436845,0.00030136,7]
[344419309,1733439037302,-500.0,0.00030136,7]
[344419311,1733439037312,-500.0,0.00030136,7]
[344419313,1733439037322,-500.0,0.00030136,7]
[344419315,1733439037332,-501.98431433,0.00030136,7]
[344419317,1733439037341,-151.0,0.00030271,7]
[344419319,1733439037351,-159.16,0.000303,31]
[344419321,1733439037363,-159.16,0.000303,31]
[344419323,1733439037372,-156.6288,0.00030355,2]
[344419325,1733439037382,-245.416,0.00030402,2]
[344419327,1733439037391,-223.97,0.00030402,2]
[344419329,1733439037401,-250.0,0.00030402,2]
[344419331,1733439037410,-176.0,0.00030411,2]
[344419333,1733439037420,-500.0,0.00030497,7]
[344419335,1733439037429,-240.92,0.00030497,7]
[344419337,1733439037439,-500.0,0.00030497,7]
[344419339,1733439037449,-500.0,0.00030497,7]
[344419342,1733439037459,-500.0,0.00030497,7]
[344419343,1733439037469,-500.0,0.00030497,7]
[344419346,1733439037479,-500.0,0.00030497,7]
[344419348,1733439037488,-500.0,0.00030497,7]
[344419350,1733439037498,-500.0,0.00030498,7]
[344419352,1733439037508,-500.0,0.00030498,7]
[344419354,1733439037518,-529.7,0.00030498,7]
[344419355,1733439037527,-191.07047982,0.00030498,7]
[344419356,1733439037537,-500.0,0.00030498,7]
[344419357,1733439037659,-500.0,0.00030498,7]
[344419358,1733439037669,-545.81943234,0.00030498,7]
[344419359,1733439037679,-500.0,0.00030498,7]
[344419360,1733439037688,-524.69674873,0.00030498,7]
[344419361,1733439037697,-498.3268157,0.00030498,7]
[344419362,1733439037706,-533.981164,0.00030498,7]
[344419363,1733439037716,-631.74,0.00030498,7]
[344419364,1733439037725,-504.01568745,0.00030498,7]
[344419365,1733439037734,-500.0,0.00030498,7]
[344419366,1733439037744,-500.0,0.00030498,7]
[344419367,1733439037757,-500.0,0.00030498,7]
[344419368,1733439037766,-500.0,0.00030498,7]
[344419369,1733439037776,-500.0,0.00030498,7]
[344419370,1733439037785,-500.0,0.00030498,7]
[344419371,1733439037795,-500.0,0.00030498,7]
[344419372,1733439037805,-503.60683412,0.00030498,7]
[344419373,1733439037814,-500.0,0.00030498,7]
[344419374,1733439037823,-501.04907303,0.00030498,7]
[344419375,1733439037832,-500.0,0.00030498,7]
[344419376,1733439037842,-594.85682375,0.00030498,7]
[344419377,1733439037851,-500.0,0.00030498,7]
[344419378,1733439037860,-500.0,0.00030498,7]
[344419379,1733439037871,-500.0,0.00030498,7]
[344419380,1733439037880,-500.0,0.00030498,7]
[344419381,1733439037889,-500.0,0.00030498,7]
[344419382,1733439037898,-500.0,0.00030498,7]
[344419383,1733439037908,-500.0,0.00030498,7]
[344419384,1733439037917,-500.0,0.00030498,7]
[344419385,1733439037926,-500.0,0.00030498,7]
[344419386,1733439037936,-500.0,0.00030498,7]
[344419388,1733439037945,-500.0,0.00030498,7]
[344419390,1733439037954,-500.0,0.00030498,7]
[344419391,1733439037963,-500.0,0.00030498,7]
[344419392,1733439037972,-443.3821382,0.00030498,7]
[344419393,1733439037981,-271.77,0.00030498,7]
[344419394,1733439037990,-500.0,0.00030498,7]
[344419395,1733439037999,-506.53407503,0.00030498,7]
[344419396,1733439038008,-500.0,0.00030498,7]
[344419397,1733439038018,-500.0,0.00030498,7]
[344419398,1733439038027,-500.0,0.00030498,7]
[344419399,1733439038037,-500.0,0.00030498,7]
[344419400,1733439038046,-500.0,0.00030498,7]
[344419401,1733439038056,-243.39033786,0.00030498,7]
[344419402,1733439038065,-640.91,0.00030498,7]
[344419403,1733439038074,-500.0,0.00030498,7]
[344419405,1733439038086,-500.0,0.00030498,7]
[344419407,1733439038095,-500.0,0.00030498,7]
[344419409,1733439038104,-516.31072651,0.00030498,7]
[344419411,1733439038114,-500.0,0.00030498,7]
[344419412,1733439038123,-500.0,0.00030498,7]
[344419413,1733439038132,-500.0,0.00030499,7]
[344419414,1733439038142,-500.0,0.00030499,7]
[344419415,1733439038151,-503.51497263,0.00030499,7]
[344419416,1733439038160,-500.0,0.00030499,7]
[344419417,1733439038169,-184.85433457,0.00030499,7]
[344419418,1733439038179,-500.0,0.00030499,7]
[344419419,1733439038188,-500.0,0.00030499,7]
[344419420,1733439038197,-430.1497492,0.00030499,7]
[344419421,1733439038206,-500.0,0.00030499,7]
[344419422,1733439038216,-500.0,0.00030499,7]
[344419423,1733439038225,-587.30799526,0.00030499,7]
[344419424,1733439038234,-500.0,0.00030499,7]
[344419425,1733439038243,-503.21684583,0.00030499,7]
[344419426,1733439038253,-377.05309685,0.00030499,7]
[344419427,1733439038262,-500.0,0.00030499,7]
[344419428,1733439038271,-295.28972792,0.00030499,7]
[344419429,1733439038281,-518.10947355,0.00030499,7]
[344419430,1733439038290,-501.80835873,0.00030499,7]
[344419431,1733439038299,-500.0,0.00030499,7]
[344419432,1733439038309,-301.27392726,0.00030499,7]
[344419433,1733439038318,-501.73800168,0.00030499,7]
[344419434,1733439038328,-500.0,0.00030499,7]
[344419435,1733439038337,-500.73773847,0.00030499,7]
[344419436,1733439038346,-546.01342703,0.00030499,7]
[344419437,1733439038355,-502.14448948,0.00030499,7]
[344419438,1733439038367,-532.3119574,0.00030499,7]
[344419439,1733439038376,-500.0,0.00030499,2]
[344419440,1733439038385,-500.0,0.00030499,7]
[344419441,1733439038394,-518.36606876,0.00030499,7]
[344419442,1733439038403,-500.0,0.00030499,7]
[344419443,1733439038412,-159.16,0.000305,31]
[344419444,1733439038422,-159.16,0.000305,31]
[344419445,1733439038431,-239.27,0.000305,2]
[344419446,1733439038440,-467.26764321,0.00030518,2]
[344419447,1733439038450,-467.26764319,0.00030547,2]
[344419448,1733439038459,-500.0,0.00030551,7]
[344419449,1733439038469,-500.0,0.00030551,7]
[344419450,1733439038478,-467.26764319,0.00030576,2]
[344419451,1733439038487,-151.0,0.00030577,7]
[344419452,1733439038496,-648.0,0.000306,15]
[344419454,1733439038506,-467.26764319,0.00030604,2]
[344419456,1733439038516,-4081.60000027,0.00030616,5]
[344419457,1733439038525,-500.0,0.00030618,7]
[344419459,1733439038535,-500.0,0.00030618,7]
[344419461,1733439038545,-467.26764319,0.00030633,2]
[344419462,1733439038554,-150.0,0.000307,4]
[344419464,1733439038563,-151.0,0.000307,16]
[344419466,1733439038573,-151.0,0.000307,17]
[344419468,1733439038582,-151.0,0.000307,15]
[344419470,1733439038592,-151.0,0.000307,19]
[344419471,1733439038602,-151.0,0.000307,18]
[344419473,1733439038611,-263.452067,0.000307,17]
[344419474,1733439038622,-1000.0,0.00030702,2]
[344419476,1733439038632,-211.35264749,0.00030704,2]
[344419478,1733439038641,-213.79073872,0.00030704,2]
[344419480,1733439038651,-279.51051766,0.00030704,2]
[344419481,1733439038661,-500.0,0.00030704,2]
[344419483,1733439038671,-178.28578049,0.00030704,2]
[344419484,1733439038680,-297.83176355,0.00030705,11]
[344419486,1733439038690,-790.15139142,0.00030707,2]
[344419487,1733439038699,-1000.0,0.00030707,9]
[344419489,1733439038708,-1000.0,0.00030707,23]
[344419491,1733439038718,-500.0,0.00030707,7]
[344419493,1733439038727,-278.87126179,0.00030708,2]
[344419495,1733439038737,-361.97477656,0.00030708,2]
[344419497,1733439038749,-500.0,0.00030708,10]
[344419498,1733439038762,-150.12,0.00030708,10]
[344419499,1733439038775,-500.0,0.00030708,10]
[344419501,1733439038787,-150.12,0.00030708,10]
[344419502,1733439038800,-150.12,0.00030708,10]
[344419503,1733439038812,-151.37572703,0.00030708,10]
[344419504,1733439038824,-500.0,0.00030708,10]
[344419505,1733439038836,-150.12,0.00030708,10]
[344419506,1733439038846,-150.12,0.00030708,10]
[344419507,1733439038856,-150.12,0.00030708,10]
[344419508,1733439038869,-150.12,0.00030708,2]
[344419509,1733439038881,-150.12,0.00030708,10]
[344419510,1733439038892,-500.0,0.00030708,10]
[344419511,1733439038903,-500.0,0.00030708,10]
[344419512,1733439038914,-150.12,0.00030708,2]
[344419513,1733439038927,-150.12,0.00030708,10]
[344419514,1733439038938,-150.12,0.00030708,10]
[344419515,1733439038949,-500.0,0.00030714,7]
[344419516,1733439038961,-500.0,0.00030714,7]
[344419517,1733439038973,-500.0,0.00030715,7]
[344419518,1733439038984,-500.0,0.00030715,7]
[344419519,1733439038994,-500.0,0.00030718,7]
[344419520,1733439039006,-511.27464889,0.00030718,7]
[344419521,1733439039017,-500.0,0.00030719,7]
[344419522,1733439039028,-500.0,0.00030719,7]
[344419523,1733439039038,-500.0,0.00030719,7]
[344419524,1733439039051,-363.54261694,0.00030719,7]
[344419525,1733439039061,-151.0,0.00030719,7]
[344419526,1733439039073,-526.18,0.00030719,7]
[344419527,1733439039083,-4211.82,0.00030725,30]
[344419528,1733439039094,-151.0,0.00030727,7]
[344419529,1733439039104,-151.0,0.00030727,7]
[344419530,1733439039115,-151.0,0.00030727,7]
[344419531,1733439039125,-151.0,0.00030727,7]
[344419532,1733439039137,-227.215894,0.00030727,7]
[344419533,1733439039148,-151.0,0.00030727,7]
[344419534,1733439039159,-151.0,0.00030727,7]
[344419535,1733439039171,-151.0,0.00030727,7]
[344419536,1733439039182,-151.0,0.00030727,7]
[344419537,1733439039193,-197.23182,0.00030727,7]
[344419538,1733439039203,-151.0,0.00030727,7]
[344419539,1733439039213,-269.239442,0.00030727,7]
[344419540,1733439039223,-151.0,0.00030727,7]
[344419541,1733439039234,-151.0,0.00030727,7]
[344419542,1733439039244,-151.0,0.00030727,7]
[344419543,1733439039253,-151.0,0.00030727,7]
[344419544,1733439039263,-151.0,0.00030727,7]
[344419545,1733439039272,-151.0,0.00030727,7]
[344419546,1733439039281,-151.0,0.00030727,7]
[344419547,1733439039293,-151.0,0.00030727,7]
[344419548,1733439039303,-151.0,0.00030727,7]